fUSD/lending_fUSD_20240919
["ID","MTS","AMOUNT","RATE_DAILY","PERIOD"]
[338521884,1726715433253,-353.62,0.00014046,2]
[338521885,1726715433263,-499.99,0.00014046,2]
[338521886,1726715433273,-29149.53572479,0.00014046,2]
[338521887,1726715433286,-6007.20427521,0.00014046,2]
[338521888,1726715433295,-999.99,0.00014046,2]
[338521889,1726715433305,-537.17,0.00014046,2]
[338521890,1726715433315,-152.97,0.0001427,2]
[338521891,1726715433325,-676.2,0.00014518,2]
[338521892,1726715433335,-1006.84662777,0.00014583,2]
[338521893,1726715433345,-4485.3917,0.00014584,2]
[338521894,1726715433354,-4017.4951,0.00014584,2]
[338521895,1726715433364,-214.2399,0.00014584,2]
[338521896,1726715433373,-1000.0,0.00014584,2]
[338521897,1726715433383,-522.49239702,0.00014584,2]
[338521907,1726715438901,-3795.2802,0.00014576,2]
[338521908,1726715438911,-1977.50760298,0.00014584,2]
[338521909,1726715438920,-408.17539125,0.00014584,2]
[338521910,1726715438930,-408.17539117,0.00014619,2]
[338521911,1726715438940,-408.17539117,0.00014654,2]
[338521912,1726715438950,-500.0,0.00014673,2]
[338521913,1726715438959,-566.76288702,0.00014673,2]
[338521914,1726715438968,-769.44,0.00014674,3]
[338521916,1726715438977,-500.0,0.00014675,2]
[338521918,1726715438987,-500.0,0.00014675,2]
[338521920,1726715438996,-500.0,0.00014675,2]
[338521922,1726715439005,-2000.0,0.00014676,2]
[338521924,1726715439015,-500.0,0.00014676,2]
[338521926,1726715439024,-500.0,0.00014676,2]
[338521928,1726715439034,-500.0,0.00014676,2]
[338521930,1726715439044,-500.0,0.00014676,2]
[338521932,1726715439053,-200.0,0.00014676,2]
[338521934,1726715439062,-384.565,0.00014683,2]
[338521936,1726715439072,-22030.0338,0.00014684,2]
[338521938,1726715439082,-381.9831,0.00014684,2]
[338521940,1726715439092,-4277.789,0.00014684,2]
[338521942,1726715439101,-1000.0,0.00014684,2]
[338521944,1726715439111,-481.272,0.00014684,2]
[338521946,1726715439121,-189184.8136,0.00014684,2]
[338521948,1726715439132,-3032.2513,0.00014684,2]
[338521950,1726715439142,-225.8913,0.00014684,2]
[338521952,1726715439152,-408.17539117,0.00014689,2]
[338521954,1726715439162,-4823.5988,0.00014694,2]
[338521956,1726715439173,-1022.3096,0.00014694,2]
[338521958,1726715439183,-4833.4103,0.00014694,2]
[338521960,1726715439194,-38713.157,0.00014694,2]
[338521962,1726715439204,-426.8983,0.00014694,2]
[338521964,1726715439215,-3060.9051,0.00014694,2]
[338521966,1726715439225,-3996.7701,0.00014694,2]
[338521968,1726715439234,-192.0854,0.00014694,2]
[338521970,1726715439244,-408.17539117,0.00014724,2]
[338521972,1726715439254,-150.0,0.00014745,2]
[338521974,1726715439267,-408.17539117,0.0001476,2]
[338521975,1726715439276,-189.90481514,0.0001478,2]
[338521976,1726715439286,-676.2,0.00014792,2]
[338521977,1726715439296,-166.53490925,0.00014793,2]
[338521978,1726715439306,-580.10732863,0.00014794,2]
[338521979,1726715439315,-500.0,0.00014794,2]
[338521980,1726715439326,-500.0,0.00014794,2]
[338521981,1726715439336,-500.0,0.00014794,2]
[338521982,1726715439346,-500.0,0.00014794,2]
[338521983,1726715439355,-500.0,0.00014794,2]
[338521984,1726715439365,-500.0,0.00014794,2]
[338521985,1726715439375,-500.0,0.00014794,2]
[338521986,1726715439384,-500.0,0.00014794,2]
[338521987,1726715439394,-500.0,0.00014794,2]
[338521988,1726715439404,-500.0,0.00014794,2]
[338521989,1726715439414,-496.95682252,0.00014794,2]
[338521990,1726715439424,-500.0,0.00014794,2]
[338521991,1726715439433,-500.0,0.00014794,2]
[338521992,1726715439443,-500.0,0.00014794,2]
[338521993,1726715439454,-500.0,0.00014794,2]
[338521994,1726715439466,-500.0,0.00014794,2]
[338521995,1726715439476,-500.0,0.00014794,2]
[338521996,1726715439485,-500.0,0.00014794,2]
[338521997,1726715439495,-500.0,0.00014794,2]
[338521998,1726715439506,-500.0,0.00014794,2]
[338521999,1726715439516,-500.0,0.00014794,2]
[338522000,1726715439525,-500.0,0.00014794,2]
[338522001,1726715439535,-500.0,0.00014794,2]
[338522002,1726715439546,-500.0,0.00014794,2]
[338522003,1726715439556,-500.0,0.00014794,2]
[338522004,1726715439566,-500.0,0.00014794,2]
[338522005,1726715439577,-500.0,0.00014794,2]
[338522006,1726715439587,-500.0,0.00014794,2]
[338522007,1726715439602,-500.0,0.00014794,2]
[338522008,1726715439612,-500.0,0.00014794,2]
[338522009,1726715439622,-429.67207822,0.00014794,2]
[338522010,1726715439633,-500.0,0.00014794,2]
[338522011,1726715439643,-500.0,0.00014794,2]
[338522012,1726715439652,-548.73402307,0.00014794,2]
[338522013,1726715439662,-500.0,0.00014794,2]
[338522014,1726715439673,-500.0,0.00014794,2]
[338522015,1726715439682,-500.0,0.00014794,2]
[338522016,1726715439692,-500.0,0.00014794,2]
[338522017,1726715439776,-500.0,0.00014794,2]
[338522018,1726715439787,-500.0,0.00014794,2]
[338522019,1726715439806,-500.0,0.00014794,2]
[338522020,1726715439815,-500.0,0.00014794,2]
[338522021,1726715439825,-500.0,0.00014794,2]
[338522022,1726715439835,-291.09420429,0.00014794,2]
[338522023,1726715439844,-500.0,0.00014794,2]
[338522024,1726715439853,-500.0,0.00014794,2]
[338522025,1726715439863,-500.0,0.00014794,2]
[338522026,1726715439873,-641.20053333,0.00014794,2]
[338522027,1726715439883,-500.0,0.00014794,2]
[338522028,1726715439892,-512.62486468,0.00014794,2]
[338522029,1726715439901,-220.729891,0.00014794,2]
[338522030,1726715439910,-160.368154,0.00014794,2]
[338522031,1726715439923,-160.368154,0.00014794,2]
[338522032,1726715439932,-160.368154,0.00014794,2]
[338522033,1726715439942,-154.747074,0.00014794,2]
[338522034,1726715439951,-151.0,0.00014794,2]
[338522035,1726715439961,-1000.0,0.00014795,2]
[338522036,1726715439970,-408.17539117,0.00014795,2]
[338522037,1726715439981,-1366.36,0.000148,2]
[338522038,1726715439991,-10007.65916083,0.000148,2]
[338522039,1726715440001,-1000.0,0.00014807,2]
[338522040,1726715440013,-446.11207467,0.00014808,2]
[338522041,1726715440023,-1500.0,0.00014817,2]
[338522042,1726715440032,-1000.0,0.00014819,2]
[338522043,1726715440043,-408.17539117,0.0001483,2]
[338522044,1726715440053,-1000.0,0.00014832,2]
[338522045,1726715440063,-152.97,0.00014842,2]
[338522046,1726715440073,-1000.0,0.00014844,2]
[338522047,1726715440084,-1500.0,0.00014846,2]
[338522048,1726715440094,-1500.0,0.00014849,2]
[338522049,1726715440104,-2213.0,0.0001485,2]
[338522050,1726715440115,-1500.0,0.0001485,2]
[338522051,1726715440126,-1000.0,0.00014857,2]
[338522052,1726715440136,-1500.0,0.0001486,12]
[338522053,1726715440146,-155.07166074,0.00014862,2]
[338522054,1726715440156,-408.17539117,0.00014865,2]
[338522055,1726715440165,-185.74943012,0.00014867,2]
[338522056,1726715440175,-1000.0,0.00014869,2]
[338522057,1726715440184,-225.0,0.0001487,2]
[338522058,1726715440194,-1598.30587061,0.0001487,2]
[338522059,1726715440205,-1500.0,0.0001488,13]
[338522060,1726715440214,-1000.0,0.00014882,2]
[338522061,1726715440225,-1000.0,0.00014894,2]
[338522062,1726715440234,-408.17539117,0.000149,2]
[338522063,1726715440246,-1000.0,0.00014907,2]
[338522064,1726715440256,-1000.0,0.00014919,2]
[338522065,1726715440268,-161.0,0.00014925,2]
[338522066,1726715440279,-1000.0,0.00014932,2]
[338522067,1726715440290,-1000.0,0.00014944,2]
[338522068,1726715440300,-1500.0,0.00014945,2]
[338522069,1726715440310,-259.3262416,0.00014953,2]
[338522070,1726715440319,-1000.0,0.00014956,2]
[338522071,1726715440330,-150.0,0.00014965,2]
[338522072,1726715440339,-1000.0,0.00014969,2]
[338522073,1726715440349,-1500.0,0.00014971,2]
[338522074,1726715440359,-156.26,0.0001498,2]
[338522075,1726715440369,-1000.0,0.00014981,2]
[338522076,1726715440378,-403432.67868547,0.0001499,3]
[338522077,1726715440387,-17695.38053079,0.0001499,3]
[338522078,1726715440397,-778.00340867,0.0001499,2]
[338522079,1726715440406,-85700.32611735,0.0001499,2]
[338522080,1726715440417,-225.0,0.0001499,2]
[338522081,1726715440427,-152.893615,0.0001499,2]
[338522082,1726715440437,-151.0,0.0001499,2]
[338522083,1726715440446,-156.26,0.0001499,2]
[338522084,1726715440457,-156.26,0.0001499,2]
[338522085,1726715440467,-156.26,0.0001499,2]
[338522086,1726715440476,-156.26,0.0001499,2]
[338522087,1726715440486,-1000.0,0.00014994,2]
[338522088,1726715440498,-1204.61102093,0.00014995,2]
[338522089,1726715440508,-4531.0,0.00014999,2]
[338522090,1726715440518,-12683.87666764,0.00015,2]
[338522091,1726715440528,-323643.00505641,0.00015,2]
[338522096,1726715440764,-112301.90411632,0.00015,2]
[338522097,1726715441267,-20841.59705309,0.00015,2]
[338522098,1726715441279,-1754.10699156,0.00015,2]
[338522099,1726715441290,-274.90874002,0.00015,2]
[338522100,1726715441302,-1076.0,0.00015,2]
[338522143,1726715443687,-29778.88781335,0.00015,2]
[338522144,1726715443699,-2851.5,0.00015,2]
[338522169,1726715444281,-8500.0,0.00015,2]
[338522170,1726715444310,-879.40452136,0.00015,2]
[338522171,1726715444322,-10816.61358908,0.00015,2]
[338522172,1726715444333,-317.58278286,0.00015,2]
[338522179,1726715446796,-5468.79866077,0.00015,2]
[338522180,1726715446867,-118786.24918,0.00015,2]
[338522181,1726715446879,-15085.6220746,0.00015,2]
[338522182,1726715446891,-448.48,0.00015,2]
[338522616,1726715622898,932.9343109,0.00015,30]
[338522875,1726715705489,167.0,0.000151,30]
[338523684,1726715780500,1050.0,0.00011,2]
[338525641,1726715957916,413.27,0.00011936,2]
[338527365,1726716475198,249.82,0.00010959,2]
[338527366,1726716487347,407.69,0.00011506,2]
[338527382,1726716631870,-302.85,0.00012757,2]
[338527383,1726716631880,-117.966,0.0001288,2]
[338527384,1726716631892,-4001.93682482,0.0001288,2]
[338527385,1726716631902,-300.0,0.00012899,2]
[338527386,1726716631912,-236.99092606,0.000129,2]
[338527387,1726716631922,-4898.93379183,0.000129,2]
[338527388,1726716631932,-160.71,0.0001299,2]
[338527389,1726716631943,-157.97352863,0.0001299,2]
[338527390,1726716631953,-281.52828416,0.00012999,2]
[338527391,1726716631963,-150.0,0.00012999,2]
[338527392,1726716631977,-2533.24364444,0.00013,2]
[338527393,1726716632034,-731.21407502,0.00013,2]
[338527394,1726716632049,-764.1593386,0.00013,2]
[338527435,1726716637635,-2313.32127577,0.00013,2]
[338527436,1726716637644,-8026.67872423,0.00013,2]
[338527438,1726716637859,-955.27057878,0.00013,2]
[338527439,1726716637933,-491.77976376,0.00013,2]
[338527440,1726716638039,-365.73387741,0.00013,2]
[338527447,1726716639954,-275.74164526,0.00013,2]
[338527448,1726716639966,-2409.145,0.00013,2]
[338527449,1726716640025,-303.88865384,0.00013,2]
[338527537,1726716643406,-510601.65379583,0.00013,2]
[338527542,1726716645971,-1149.82107966,0.00013,2]
[338527543,1726716645984,-376.87925389,0.00013,2]
[338527544,1726716645995,-31113.0,0.00013,2]
[338527547,1726716810497,155.59,0.00010959,2]
[338527548,1726716940280,162.33,0.0001267,2]
[338527549,1726716961839,150.0,0.00012662,2]
[338527550,1726717008922,155.73,0.0001272,2]
[338527551,1726717017216,431.54,0.0001084,2]
[338527552,1726717052875,13002.8,0.00012737,2]
[338527553,1726717057543,236.07799542,0.00012658,2]
[338527554,1726717132105,250.0,0.0001254,2]
[338527555,1726717154846,290.22,0.0001258,2]
[338527556,1726717198290,465.84,0.00012568,2]
[338527557,1726717202679,1544.00382849,0.00015,90]
[338527558,1726717244768,-300.0,0.00012757,2]
[338527559,1726717244791,-713.53,0.00012758,2]
[338527560,1726717244814,-250.0,0.00012758,2]
[338527561,1726717244836,-416.47,0.00012758,2]
[338527562,1726717272099,200.0,0.000124,4]
[338527563,1726717274234,500.0,0.000125,4]
[338527564,1726717276308,700.0,0.000126,4]
[338527565,1726717278409,1000.0,0.000127,4]
[338527566,1726717315444,429.17,0.00012522,2]
[338527567,1726717345931,173.1,0.00010959,2]
[338527568,1726717365331,421.86233158,0.00012668,2]
[338527569,1726717399130,250.0,0.00012464,2]
[338527570,1726717449056,162.33,0.00012516,2]
[338527571,1726717492645,450.0,0.00012743,2]
[338527572,1726717504426,150.0,0.00011688,2]
[338527573,1726717504568,150.0,0.00011718,2]
[338527574,1726717504795,150.0,0.00011748,2]
[338527575,1726717504900,150.0,0.00011778,2]
[338527576,1726717505244,150.0,0.00011808,2]
[338527577,1726717506047,150.0,0.00011839,2]
[338527578,1726717506317,150.0,0.00011869,2]
[338527579,1726717506663,150.0,0.00011899,2]
[338527580,1726717506957,150.0,0.00011929,2]
[338527581,1726717507486,150.0,0.00011959,2]
[338527582,1726717507632,150.0,0.0001199,2]
[338527583,1726717507969,150.0,0.0001202,2]
[338527584,1726717508401,150.0,0.0001205,2]
[338527585,1726717508722,150.0,0.0001208,2]
[338527586,1726717509113,150.0,0.0001211,2]
[338527587,1726717509370,150.0,0.00012141,2]
[338527588,1726717509701,150.0,0.00012171,2]
[338527589,1726717510015,150.0,0.00012201,2]
[338527590,1726717510326,150.0,0.00012231,2]
[338527591,1726717510647,150.0,0.00012261,2]
[338527592,1726717514040,150.0,0.00012292,2]
[338527593,1726717514296,150.0,0.00012322,2]
[338527594,1726717515022,150.0,0.00012352,2]
[338527595,1726717515170,150.0,0.00012382,2]
[338527596,1726717515772,150.0,0.00012412,2]
[338527597,1726717516035,150.0,0.00012443,2]
[338527598,1726717516546,150.0,0.00012473,2]
[338527599,1726717516705,150.0,0.00012503,2]
[338527600,1726717517029,150.0,0.00012533,2]
[338527601,1726717517352,150.0,0.00012563,2]
[338527602,1726717517682,150.0,0.00012594,2]
[338527603,1726717518001,150.0,0.00012624,2]
[338527604,1726717518325,150.0,0.00012654,2]
[338527605,1726717518664,150.0,0.00012684,2]
[338527606,1726717519096,150.0,0.00012714,2]
[338527607,1726717526606,2000.0,0.00012343,2]
[338527608,1726717529130,413.84,0.00012343,2]
[338527609,1726717548018,250.0,0.00012306,2]
[338527610,1726717564311,300.0,0.00012743,2]
[338527611,1726717568500,186315.0,0.000127,2]
[338527612,1726717580127,2155.68,0.00012251,2]
[338527613,1726717582013,1050.0,0.00011,2]
[338527614,1726717594981,300.0,0.00012743,4]
[338527615,1726717631640,250.0,0.0001232,2]
[338527616,1726717633591,9131.29,0.00012289,2]
[338527625,1726717663340,12346.04,0.00012253,2]
[338527626,1726717665885,290.22,0.00012253,2]
[338527627,1726717735229,410.58,0.00012226,2]
[338527628,1726717791959,441.19,0.00010296,2]
[338527629,1726717792282,441.19,0.0001256,2]
[338527630,1726717818876,11510.0,0.000127,3]
[338527631,1726717829499,500.0,0.00012214,2]
[338527759,1726717839790,-2.57822506,0.00012745,2]
[338527760,1726717839802,-147.42177494,0.00012745,2]
[338527761,1726717839811,-150.0,0.00012775,2]
[338527762,1726717839820,-150.0,0.00012805,2]
[338527763,1726717839829,-150.0,0.00012835,2]
[338527764,1726717839838,-150.0,0.00012865,2]
[338527765,1726717839847,-177.17,0.0001287,2]
[338527766,1726717839856,-501.60249181,0.0001287,2]
[338527767,1726717839921,-1089.1928571,0.0001287,2]
[338527768,1726717839958,-214.12039338,0.0001287,2]
[338527769,1726717839967,-150.0,0.00012896,2]
[338527770,1726717839976,-150.99,0.00012899,2]
[338527771,1726717839985,-242.93838069,0.000129,2]
[338527772,1726717839994,-150.43465662,0.000129,2]
[338527773,1726717840004,-150.0,0.00012926,2]
[338527774,1726717840013,-386.38,0.00012926,2]
[338527775,1726717840023,-150.0,0.00012956,2]
[338527776,1726717840033,-273.24344932,0.00012986,2]
[338527777,1726717840057,-290.44662321,0.0001299,2]
[338527778,1726717840066,-2045.16943774,0.00012998,2]
[338527779,1726717840076,-150.0,0.00012999,2]
[338527780,1726717840085,-150.32914495,0.00012999,2]
[338527781,1726717840094,-14799.87605354,0.00013,2]
[338527782,1726717840104,-16420.34428498,0.00013,2]
[338527866,1726717842805,-479.83630542,0.000129,2]
[338527867,1726717843888,-3070.03536807,0.000129,2]
[338527868,1726717843898,-743959.96463189,0.00013,2]
[338527874,1726717845748,-958.7649852,0.00013,2]
[338527875,1726717845762,-3992.41840448,0.00013,2]
[338527876,1726717845947,-11573.11739038,0.00013,2]
[338527877,1726717846023,-373.07588932,0.00013,2]
[338527878,1726717865302,413.19931967,0.00012686,2]
[338527879,1726717870808,200.0,0.00012619,2]
[338527880,1726717899916,400.0,0.000125,4]
[338527881,1726717902015,800.0,0.000126,4]
[338527882,1726717904125,1200.0,0.000127,4]
[338527883,1726717911741,250.0,0.00012727,2]
[338527884,1726718008991,160.28,0.00010959,2]
[338527885,1726718068159,11510.0,0.000127,5]
[338527886,1726718073020,173.65,0.00012456,2]
[338527887,1726718082055,250.0,0.00012418,2]
[338527888,1726718090807,372.45,0.00012418,2]
[338527889,1726718154722,595.19014215,0.00012733,2]
[338527890,1726718161449,3539.89,0.00012434,2]
[338527891,1726718204576,187.87,0.00012478,2]
[338527893,1726718338377,439.91,0.00010453,2]
[338527894,1726718338729,439.91,0.00012717,2]
[338527895,1726718356610,468.66,0.00012441,2]
[338527896,1726718404282,205.42,0.00012495,2]
[338527899,1726718404478,205.42,0.00012498,2]
[338527900,1726718404686,205.42,0.00012502,2]
[338527902,1726718404950,205.42,0.00012505,2]
[338527903,1726718405140,205.42,0.00012508,2]
[338527905,1726718405377,205.42,0.00012511,2]
[338527907,1726718405923,205.42,0.00012515,2]
[338527908,1726718405992,205.42,0.00012518,2]
[338527910,1726718406064,205.42,0.00012521,2]
[338527911,1726718406224,205.42,0.00012525,2]
[338527912,1726718406433,205.42,0.00012528,2]
[338527913,1726718406695,205.42,0.00012531,2]
[338527914,1726718407332,205.42,0.00012534,2]
[338527915,1726718407402,205.42,0.00012538,2]
[338527916,1726718407644,205.42,0.00012541,2]
[338527917,1726718407736,205.42,0.00012544,2]
[338527918,1726718407947,205.42,0.00012548,2]
[338527919,1726718408364,205.42,0.00012551,2]
[338527920,1726718408771,205.42,0.00012554,2]
[338527921,1726718408966,205.42,0.00012558,2]
[338527922,1726718546428,250.0,0.00012447,2]
[338527923,1726718634364,213.93,0.00012425,2]
[338527924,1726718678693,1500.0,0.00012606,2]
[338527925,1726718695881,12019.21,0.00012384,2]
[338527926,1726718706879,1000.0,0.00012417,2]
[338527927,1726718725074,151.81,0.00010959,2]
[338527928,1726718729590,421.86233158,0.00012642,2]
[338527929,1726718746991,187.86,0.0001262,2]
[338527930,1726718824040,300.0,0.000124,4]
[338527931,1726718826128,600.0,0.000125,4]
[338527932,1726718828229,900.0,0.000126,4]
[338527933,1726718830318,1200.0,0.000127,4]
[338527934,1726718831492,411.31,0.00010623,2]
[338527935,1726718843736,2952.778,0.00012647,2]
[338527936,1726718846319,250.0,0.00012453,2]
[338527954,1726718860061,822.39,0.000126,2]
[338527966,1726719031936,-600.0,0.000128,4]
[338527967,1726719031949,-900.0,0.000128,4]
[338527968,1726719031958,-411.31,0.00012886,2]
[338527969,1726719031967,-1154.908,0.00012898,2]
[338527970,1726719031976,-150.0,0.00012899,2]
[338527971,1726719031985,-218.64454263,0.00012899,2]
[338527972,1726719031994,-137.89180986,0.00012899,2]
[338527973,1726719032006,-162.10819014,0.00012899,2]
[338527974,1726719032015,-158.32920976,0.000129,2]
[338527975,1726719032024,-184.0898548,0.000129,2]
[338527976,1726719032033,-886.37215429,0.000129,2]
[338527977,1726719032045,-839.29944571,0.000129,2]
[338527978,1726719032054,-913.67016982,0.000129,2]
[338527979,1726719032065,-86.32983018,0.000129,2]
[338527980,1726719032074,-199.75907517,0.000129,4]
[338527981,1726719032086,-100.24092483,0.000129,4]
[338527982,1726719032095,-1000.0,0.000129,2]
[338527983,1726719032105,-2500.0,0.000129,2]
[338527984,1726719032114,-1415.31011162,0.000129,2]
[338527985,1726719032245,-667.99168838,0.000129,2]
[338527986,1726719032256,-81.41751163,0.000129,2]
[338527987,1726719032269,-2442.88072341,0.000129,2]
[338527988,1726719032280,-150.43465659,0.000129,2]
[338527989,1726719032291,-233.17351533,0.000129,2]
[338527990,1726719032304,-2346.54671401,0.000129,2]
[338527991,1726719032313,-500.0,0.00012973,2]
[338527992,1726719032322,-503.82406782,0.00012973,2]
[338527993,1726719032331,-503.8626189,0.00012973,2]
[338527994,1726719032340,-502.09940959,0.00012973,2]
[338527995,1726719032350,-502.08720999,0.00012973,2]
[338527996,1726719032359,-450.2864,0.00012986,2]
[338527997,1726719032368,-179.99,0.00012989,2]
[338527998,1726719032378,-499.99,0.00012989,2]
[338527999,1726719032387,-1799.22523805,0.0001299,2]
[338528000,1726719032398,-767.4823212,0.0001299,2]
[338528001,1726719032407,-767.4823212,0.0001299,2]
[338528002,1726719032416,-767.4823212,0.0001299,2]
[338528003,1726719032425,-376.365,0.00012998,2]
[338528004,1726719032435,-19188.5208186,0.00012998,2]
[338528005,1726719032446,-251.03914311,0.00012998,2]
[338528006,1726719032457,-865.31617129,0.00012998,2]
[338528007,1726719032480,-3686.99397903,0.00012998,2]
[338528008,1726719032492,-445.64999998,0.00012998,2]
[338528009,1726719032503,-1426.98966618,0.00012998,2]
[338528010,1726719032514,-307.8334,0.00012998,2]
[338528011,1726719032526,-1533.34153914,0.00012998,2]
[338528012,1726719032537,-521.124372,0.00012998,2]
[338528013,1726719032548,-595.5625,0.00012998,2]
[338528014,1726719032583,-502.90722895,0.00012998,2]
[338528015,1726719032594,-998.32424522,0.00012998,2]
[338528016,1726719032605,-516.47725402,0.00012998,2]
[338528017,1726719032668,-50996.15848257,0.00012998,2]
[338528018,1726719032679,-401.9450804,0.00012998,2]
[338528019,1726719032690,-537.31713837,0.00012998,2]
[338528020,1726719032702,-1936.87128191,0.00012998,2]
[338528021,1726719032724,-1500.0,0.00012998,2]
[338528022,1726719032735,-2053.25173375,0.00012998,2]
[338528028,1726719037968,-62357.25542165,0.00012998,2]
[338528029,1726719038064,-521.5996,0.00012998,2]
[338528030,1726719038158,-6511.07676179,0.00012998,2]
[338528129,1726719039873,-504.152,0.00012998,2]
[338528130,1726719040041,-253.44497898,0.00012998,2]
[338528131,1726719040052,-556.86577081,0.00012998,2]
[338528132,1726719040063,-7312.89457521,0.00012998,2]
[338528133,1726719040074,-1730.84596,0.00012998,2]
[338528134,1726719040095,-1374.87939935,0.00012998,2]
[338528135,1726719040106,-7094.46715553,0.00012998,2]
[338528136,1726719040117,-109740.27335171,0.00012998,2]
[338528137,1726719040126,-500.0,0.00012999,2]
[338528138,1726719040135,-500.0,0.00012999,2]
[338528139,1726719040144,-501.4185428,0.00012999,2]
[338528140,1726719040153,-288.25696587,0.00012999,2]
[338528141,1726719040163,-507.07596464,0.00012999,2]
[338528142,1726719040171,-500.0,0.00012999,2]
[338528143,1726719040181,-500.0,0.00012999,2]
[338528144,1726719040190,-236.23108211,0.00012999,2]
[338528145,1726719040198,-500.0,0.00012999,2]
[338528146,1726719040207,-385.46558059,0.00012999,2]
[338528147,1726719040216,-500.0,0.00012999,2]
[338528148,1726719040225,-500.0,0.00012999,2]
[338528149,1726719040233,-500.0,0.00012999,2]
[338528150,1726719040242,-500.0,0.00012999,2]
[338528151,1726719040251,-500.0,0.00012999,2]
[338528152,1726719040260,-500.0,0.00012999,2]
[338528153,1726719040269,-500.0,0.00012999,2]
[338528154,1726719040278,-500.0,0.00012999,2]
[338528155,1726719040288,-500.0,0.00012999,2]
[338528156,1726719040297,-500.0,0.00012999,2]
[338528157,1726719040306,-500.0,0.00012999,2]
[338528158,1726719040316,-500.0,0.00012999,2]
[338528159,1726719040325,-5827.02,0.00013,2]
[338528160,1726719040334,-14372.05639807,0.00013,2]
[338528161,1726719040343,-368816.51709611,0.00013,2]
[338528162,1726719040364,-714.3982567,0.00013,2]
[338528163,1726719040375,-5373.59318804,0.00013,2]
[338528197,1726719043684,-3563.9999998,0.00013,2]
[338528198,1726719046079,-327.70942669,0.000129,2]
[338528199,1726719046088,-9386.13838943,0.00013,2]
[338528200,1726719046133,-1597.71353979,0.00013,2]
[338528406,1726719077675,514653.95032206,6.881e-05,7]
[338528407,1726719077701,98295.02708794,6.881e-05,7]
[338528408,1726719195790,200.0,0.00012684,2]
[338528409,1726719209800,3567.81,0.00012684,2]
[338528410,1726719244288,250.0,0.00012713,2]
[338528411,1726719300160,377.18,0.00012724,2]
[338528412,1726719361738,154.72,0.00010959,2]
[338528413,1726719384335,1050.0,0.00011,2]
[338528414,1726719398284,82988.10492659,0.00012743,2]
[338528415,1726719407328,385.37,0.00010698,2]
[338528416,1726719412234,175.59,0.00012571,2]
[338528417,1726719412434,175.59,0.00012592,2]
[338528418,1726719412664,175.59,0.00012613,2]
[338528419,1726719412877,175.59,0.00012634,2]
[338528420,1726719418032,250.0,0.00012571,2]
[338528421,1726719503749,200.0,0.00012541,2]
[338528422,1726719528500,695.5,0.00012541,2]
[338528423,1726719591116,390.6,0.00012549,2]
[338528424,1726719636837,1436.2,0.00012558,2]
[338528425,1726719715537,840.0,0.00012448,2]
[338528426,1726719731117,421.86233158,0.00012648,2]
[338528427,1726719765790,250.0,0.00012489,2]
[338528428,1726719842344,390.68,0.00012611,2]
[338528429,1726719861362,155.78,0.00010959,2]
[338528430,1726719910960,250.0,0.00012561,2]